[Event "Winter Malopolska Cup Master 2022"]
[Site "Krakow"]
[Date "2022.01.15"]
[Round "1.7"]
[White "Czaplak, Lukasz"]
[Black "Kania, Franciszek"]
[Result "1-0"]
[ECO "B38"]
[WhiteElo "1877"]
[BlackElo "1528"]
[Annotator "NA RC"]
[PlyCount "109"]
[EventDate "2022.01.15"]
[EventType "swiss"]
[EventCountry "POL"]
[SourceTitle "playchess.com"]
[Source "ChessBase"]
[SourceQuality "1"]
[TimeControl "5400+30"]

1. e4 {[%emt 0:00:02]} c5 {[%emt 0:00:05]} 2. Nf3 {[%emt 0:00:03]} g6 {[%emt 0:00:06]} 3. d4 {[%emt 0:00:03]} cxd4 {[%emt 0:00:05]} 4. Nxd4 {[%emt 0:00:04]} Bg7 {[%emt 0:00:11]} 5. c4 {[%emt 0:00:10]} Nc6 {[%emt 0:00:15]} 6. Be3 {[%emt 0:00:19]} Nf6 {[%emt 0:00:25]} 7. Nc3 {[%emt 0:00:10]} O-O {[%emt 0:00:09]} 8. Be2 {[%emt 0:00:21]} d6 {[%emt 0:00:13]} 9. O-O {[%emt 0:00:08]} Bd7 {[%emt 0:00:16]} 10. h3 {[%emt 0:01:50]} Nxd4 {[%emt 0:00:58]} 11. Bxd4 {[%emt 0:00:36]} Bc6 {[%emt 0:00:12]} 12. f4 {[%emt 0:12:41]} Nd7 {[%emt 0:04:53]} 13. Bxg7 {[%emt 0:05:44]} Kxg7 {[%emt 0:00:48]} 14. Kh1 {[%emt 0:02:53]} a5 {[%emt 0:02:48]} 15. Qd2 {[%emt 0:04:00]} f6 {[%emt 0:01:01]} 16. Bf3 {[%emt 0:01:31]} Qb6 {[%emt 0:01:09]} 17. Rae1 {[%emt 0:03:13]} Rad8 {[%emt 0:02:23]} 18. Nd5 {[%emt 0:03:13]} Bxd5 {[%emt 0:01:15]} 19. exd5 {[%emt 0:00:36]} Rfe8 {[%emt 0:02:07]} 20. Re3 {[%emt 0:03:26]} Nc5 {[%emt 0:04:19]} 21. Rfe1 {[%emt 0:00:15]} Rd7 {[%emt 0:00:58]} 22. f5 {[%emt 0:07:30]} Qd8 {[%emt 0:07:56]} 23. Bg4 {[%emt 0:05:04]} Rc7 {[%emt 0:04:04]} 24. Qxa5 {[%emt 0:02:31]} Rh8 {[%emt 0:04:02]} 25. Qxc7 {[%emt 0:01:57]} Qxc7 {[%emt 0:00:29]} 26. Rxe7+ {[%emt 0:00:01]} Qxe7 {[%emt 0:00:10]} 27. Rxe7+ {[%emt 0:00:02]} Kh6 {[%emt 0:01:43]} 28. b4 {[%emt 0:01:28]} Nd3 {[%emt 0:00:11]} 29. fxg6 {[%emt 0:00:35]} hxg6 {[%emt 0:00:30]} 30. Rxb7 {[%emt 0:00:22]} Kg5 {[%emt 0:00:59]} 31. Be2 {[%emt 0:01:36]} Nf4 {[%emt 0:02:50]} 32. Bf1 {[%emt 0:00:50]} Ra8 {[%emt 0:01:12]} 33. Rd7 {[%emt 0:05:34]} Rxa2 {[%emt 0:00:09]} 34. Rxd6 {[%emt 0:00:27]} Kh4 {[%emt 0:00:22]} 35. Rxf6 {[%emt 0:03:01]} Kg3 {[%emt 0:01:42]} 36. Rxf4 {[%emt 0:06:48]} Kxf4 {[%emt 0:00:36]} 37. Kh2 {[%emt 0:00:42]} Rb2 {[%emt 0:00:32]} 38. b5 {[%emt 0:02:21]} Ke5 {[%emt 0:01:16]} 39. Kg3 {[%emt 0:00:40]} Kd6 {[%emt 0:00:14]} 40. h4 {[%emt 0:02:57]} Kc5 {[%emt 0:03:49]} 41. Kf3 {[%emt 0:00:26]} Rb3+ {[%emt 0:01:23]} 42. Kf2 {[%emt 0:00:40]} Rc3 {[%emt 0:01:02]} 43. Be2 {[%emt 0:00:54]} Rb3 {[%emt 0:02:14]} 44. Bf1 {[%emt 0:01:03]} Rc3 {[%emt 0:00:33]} 45. g4 {[%emt 0:00:23]} Ra3 {[%emt 0:01:25]} 46. h5 {[%emt 0:00:53]} g5 {[%emt 0:04:46]} 47. h6 {[%emt 0:00:45]} Ra8 {[%emt 0:00:27]} 48. h7 {[%emt 0:03:18]} Rh8 {[%emt 0:00:53]} 49. Bd3 {[%emt 0:00:43]} Kd4 {[%emt 0:01:26]} 50. Ke2 {[%emt 0:03:42]} Re8+ {[%emt 0:02:35]} 51. Kd2 {[%emt 0:00:08]} Rh8 {[%emt 0:02:25]} 52. d6 {[%emt 0:01:07]} Kc5 {[%emt 0:01:22]} 53. d7 {[%emt 0:00:07]} Kd4 {[%emt 0:00:37]} 54. Bg6 {[%emt 0:03:27]} Kxc4 {[%emt 0:00:34]} 55. Be8 {[%emt 0:00:09]} 1-0

[Event "Winter Malopolska Cup Master 2022"]
[Site "Krakow"]
[Date "2022.01.15"]
[Round "2.5"]
[White "Tokarz, Izabela"]
[Black "Wilk, Igor"]
[Result "1/2-1/2"]
[ECO "D35"]
[WhiteElo "1728"]
[BlackElo "1768"]
[Annotator "NA RC"]
[PlyCount "61"]
[EventDate "2022.01.15"]
[EventType "swiss"]
[EventCountry "POL"]
[SourceTitle "playchess.com"]
[Source "ChessBase"]
[SourceQuality "1"]
[TimeControl "5400+30"]

1. d4 {[%emt 0:00:00]} d5 {[%emt 0:00:09]} 2. c4 {[%emt 0:00:04]} e6 {[%emt 0:00:03]} 3. Nc3 {[%emt 0:00:03]} Nf6 {[%emt 0:00:07]} 4. cxd5 {[%emt 0:00:02]} exd5 {[%emt 0:00:07]} 5. Bg5 {[%emt 0:00:06]} Be7 {[%emt 0:00:07]} 6. Qc2 {[%emt 0:00:05]} c6 {[%emt 0:00:15]} 7. e3 {[%emt 0:00:06]} O-O {[%emt 0:00:14]} 8. Bd3 {[%emt 0:00:04]} Nbd7 {[%emt 0:00:06]} 9. Nge2 {[%emt 0:05:18]} Re8 {[%emt 0:01:18]} 10. O-O {[%emt 0:01:43]} h6 {[%emt 0:01:45]} 11. Bh4 {[%emt 0:00:12]} Ne4 {[%emt 0:04:05]} 12. Bxe7 {[%emt 0:04:51]} Qxe7 {[%emt 0:00:09]} 13. Rae1 {[%emt 0:01:05]} Ndf6 {[%emt 0:04:03]} 14. f3 {[%emt 0:00:46]} Nxc3 {[%emt 0:00:22]} 15. Nxc3 {[%emt 0:00:02]} Qd6 {[%emt 0:03:09]} 16. Qf2 {[%emt 0:04:38]} Bd7 {[%emt 0:01:26]} 17. Bb1 {[%emt 0:07:03]} c5 {[%emt 0:02:36]} 18. Rd1 {[%emt 0:01:59]} cxd4 {[%emt 0:08:02]} 19. Rxd4 {[%emt 0:00:41]} Qe5 {[%emt 0:00:09]} 20. e4 {[%emt 0:04:31]} dxe4 {[%emt 0:01:14]} 21. Nxe4 {[%emt 0:12:57]} Bc6 {[%emt 0:03:01]} 22. Rfd1 {[%emt 0:07:17]} Nxe4 {[%emt 0:03:36]} 23. Bxe4 {[%emt 0:00:18]} Bxe4 {[%emt 0:00:30]} 24. Rxe4 {[%emt 0:00:05]} Qa5 {[%emt 0:03:18]} 25. Rxe8+ {[%emt 0:01:32]} Rxe8 {[%emt 0:00:13]} 26. a3 {[%emt 0:00:04]} Qb5 {[%emt 0:01:25]} 27. Rd2 {[%emt 0:00:41]} a6 {[%emt 0:02:59]} 28. h3 {[%emt 0:00:23]} Qc6 {[%emt 0:01:23]} 29. Rc2 {[%emt 0:00:49]} Qd6 {[%emt 0:00:33]} 30. Rd2 {[%emt 0:00:15]} Qc6 {[%emt 0:00:18]} 31. Rc2 {[%emt 0:00:04]} 1/2-1/2

[Event "Winter Malopolska Cup Master 2022"]
[Site "Krakow"]
[Date "2022.01.15"]
[Round "2.6"]
[White "Kania, Franciszek"]
[Black "Szopa, Emilia"]
[Result "0-1"]
[ECO "B17"]
[WhiteElo "1528"]
[BlackElo "1588"]
[Annotator "NA RC"]
[PlyCount "72"]
[EventDate "2022.01.15"]
[EventType "swiss"]
[EventCountry "POL"]
[SourceTitle "playchess.com"]
[Source "ChessBase"]
[SourceQuality "1"]
[TimeControl "5400+30"]

1. e4 {[%emt 0:00:03]} c6 {[%emt 0:00:08]} 2. d4 {[%emt 0:00:08]} d5 {[%emt 0:00:06]} 3. Nc3 {[%emt 0:00:11]} dxe4 {[%emt 0:00:11]} 4. Nxe4 {[%emt 0:00:07]} Nd7 {[%emt 0:00:29]} 5. Nf3 {[%emt 0:00:54]} Ngf6 {[%emt 0:00:58]} 6. Nxf6+ {[%emt 0:02:59]} Nxf6 {[%emt 0:01:37]} 7. Bd3 {[%emt 0:00:52]} Bg4 {[%emt 0:02:04]} 8. c3 {[%emt 0:00:40]} e6 {[%emt 0:03:43]} 9. Bf4 {[%emt 0:02:10]} Be7 {[%emt 0:05:59]} 10. Qd2 {[%emt 0:01:28]} Bxf3 {[%emt 0:05:19]} 11. gxf3 {[%emt 0:00:28]} Nd5 {[%emt 0:02:15]} 12. Bg3 {[%emt 0:12:47]} Bd6 {[%emt 0:05:25]} 13. O-O-O {[%emt 0:01:21]} Qc7 {[%emt 0:05:54]} 14. Kb1 {[%emt 0:04:13]} O-O-O {[%emt 0:03:31]} 15. Qc2 {[%emt 0:07:41]} h5 {[%emt 0:03:01]} 16. Rde1 {[%emt 0:01:45]} h4 {[%emt 0:02:44]} 17. Be5 {[%emt 0:00:28]} Bxe5 {[%emt 0:06:13]} 18. dxe5 {[%emt 0:05:00]} Rh5 {[%emt 0:05:10]} 19. Re4 Rdh8 {[%emt 0:05:37]} 20. f4 {[%emt 0:07:41]} h3 {[%emt 0:08:31]} 21. Qe2 {[%emt 0:06:05]} Qb6 {[%emt 0:08:00]} 22. Ka1 {[%emt 0:02:04]} Rf5 {[%emt 0:00:36]} 23. Qg4 {[%emt 0:16:43]} g6 {[%emt 0:04:09]} 24. f3 {[%emt 0:03:38]} Qd8 {[%emt 0:08:57]} 25. Ra4 Ne3 {[%emt 0:01:15]} 26. Bxf5 {[%emt 0:03:01]} Nxg4 {[%emt 0:00:54]} 27. Bxg4 {[%emt 0:00:06]} c5 {[%emt 0:02:06]} 28. Rxa7 {[%emt 0:01:28]} Kb8 {[%emt 0:00:26]} 29. Ra4 {[%emt 0:00:14]} Qd2 {[%emt 0:00:13]} 30. Re4 {[%emt 0:01:43]} Rd8 {[%emt 0:00:49]} 31. Ree1 {[%emt 0:00:50]} Qxf4 {[%emt 0:00:28]} 32. Re4 {[%emt 0:01:06]} Qd2 {[%emt 0:01:16]} 33. a3 {[%emt 0:00:46]} Qc2 {[%emt 0:00:51]} 34. Bxh3 {[%emt 0:00:21]} Rd1+ {[%emt 0:00:52]} 35. Rxd1 {[%emt 0:00:19]} Qxd1+ {[%emt 0:00:08]} 36. Ka2 {[%emt 0:00:01]} Qxf3 {[%emt 0:00:13]} 0-1

[Event "Winter Malopolska Cup Master 2022"]
[Site "Krakow"]
[Date "2022.01.16"]
[Round "3.1"]
[White "Golenia, Wojciech"]
[Black "Kyc, Jerzy"]
[Result "1-0"]
[ECO "A38"]
[WhiteElo "2059"]
[BlackElo "2250"]
[Annotator "ChessBase"]
[PlyCount "115"]
[EventDate "2022.01.15"]
[EventType "swiss"]
[EventCountry "POL"]
[SourceTitle "playchess.com"]
[Source "ChessBase"]
[SourceQuality "1"]
[TimeControl "5400+30"]

1. c4 {[%emt 0:00:23]} c5 {[%emt 0:01:28]} 2. Nc3 {[%emt 0:01:29]} Nc6 {[%emt 0:00:23]} 3. g3 {[%emt 0:01:25]} g6 {[%emt 0:03:26]} 4. Bg2 {[%emt 0:01:40]} Bg7 {[%emt 0:00:05]} 5. Nf3 {[%emt 0:00:21]} Nf6 {[%emt 0:05:19]} 6. O-O {[%emt 0:02:29]} O-O {[%emt 0:00:07]} 7. d3 {[%emt 0:06:10]} b6 {[%emt 0:05:30]} 8. a3 {[%emt 0:05:40]} Bb7 {[%emt 0:01:26]} 9. Rb1 {[%emt 0:02:53]} d5 {[%emt 0:09:53]} 10. cxd5 {[%emt 0:03:27]} Nxd5 {[%emt 0:00:02]} 11. Bd2 {[%emt 0:11:45]} e5 {[%emt 0:06:25]} 12. Qa4 {[%emt 0:07:02]} Re8 {[%emt 0:07:12]} 13. Rfc1 {[%emt 0:07:03]} Nd4 {[%emt 0:02:00]} 14. Nxd4 {[%emt 0:06:27]} exd4 {[%emt 0:05:37]} 15. Nxd5 {[%emt 0:01:38]} Bxd5 {[%emt 0:00:16]} 16. Re1 {[%emt 0:01:31]} Bxg2 {[%emt 0:00:36]} 17. Kxg2 {[%emt 0:00:08]} Qd5+ {[%emt 0:01:08]} 18. Kg1 {[%emt 0:01:28]} Re7 {[%emt 0:02:56]} 19. b4 {[%emt 0:03:04]} cxb4 {[%emt 0:10:31]} 20. Bxb4 {[%emt 0:06:01]} Re6 {[%emt 0:00:56]} 21. Rbc1 {[%emt 0:02:59]} a5 {[%emt 0:04:42]} 22. Bd2 {[%emt 0:01:15]} h5 {[%emt 0:01:54]} 23. Qc4 {[%emt 0:02:55]} Qf5 {[%emt 0:01:57]} 24. a4 {[%emt 0:03:13]} h4 {[%emt 0:02:50]} 25. Rb1 {[%emt 0:06:27]} Rae8 {[%emt 0:02:19]} 26. Qb5 {[%emt 0:03:54]} Qxb5 {[%emt 0:12:14]} 27. Rxb5 {[%emt 0:01:12]} Rxe2 {[%emt 0:00:05]} 28. Kf1 {[%emt 0:01:13]} Rxe1+ {[%emt 0:02:10]} 29. Bxe1 {[%emt 0:00:01]} hxg3 {[%emt 0:00:30]} 30. fxg3 {[%emt 0:00:47]} Re6 {[%emt 0:00:45]} 31. Rd5 {[%emt 0:01:36]} Re3 {[%emt 0:00:25]} 32. Rd8+ {[%emt 0:01:53]} Kh7 {[%emt 0:00:04]} 33. Rd6 {[%emt 0:00:49]} Rxd3 {[%emt 0:00:48]} 34. Rxb6 {[%emt 0:00:01]} Ra3 {[%emt 0:00:26]} 35. Bxa5 {[%emt 0:02:44]} Rxa4 {[%emt 0:00:12]} 36. Bd2 {[%emt 0:00:37]} Ra2 {[%emt 0:00:11]} 37. Ke1 {[%emt 0:00:23]} Bh6 {[%emt 0:07:04]} 38. Bxh6 {[%emt 0:00:43]} Kxh6 {[%emt 0:00:02]} 39. Rd6 {[%emt 0:03:19]} Rxh2 {[%emt 0:00:36]} 40. Rxd4 {[%emt 0:00:18]} Rg2 {[%emt 0:00:34]} 41. Rd3 {[%emt 0:00:28]} Kh5 {[%emt 0:00:24]} 42. Kf1 {[%emt 0:00:16]} Rb2 {[%emt 0:00:14]} 43. Rd4 {[%emt 0:00:52]} f5 {[%emt 0:00:18]} 44. Rh4+ {[%emt 0:00:57]} Kg5 {[%emt 0:00:01]} 45. Ra4 {[%emt 0:00:15]} Rd2 {[%emt 0:00:13]} 46. Rb4 {[%emt 0:00:27]} Rh2 {[%emt 0:00:36]} 47. Kg1 {[%emt 0:00:30]} Re2 {[%emt 0:00:03]} 48. Kf1 {[%emt 0:01:09]} Re4 {[%emt 0:00:07]} 49. Rb6 {[%emt 0:00:26]} Kh5 {[%emt 0:00:05]} 50. Kg2 {[%emt 0:01:03]} g5 {[%emt 0:00:07]} 51. Kf3 {[%emt 0:00:38]} Rc4 {[%emt 0:00:22]} 52. Rb5 {[%emt 0:00:30]} Rc3+ {[%emt 0:00:45]} 53. Kg2 {[%emt 0:00:29]} Rc2+ {[%emt 0:00:04]} 54. Kf3 {[%emt 0:00:23]} g4+ {[%emt 0:00:15]} 55. Kf4 {[%emt 0:00:42]} Rf2+ {[%emt 0:00:06]} 56. Ke5 {[%emt 0:00:10]} Rf3 {[%emt 0:04:35]} 57. Kf6 {[%emt 0:00:09]} Rxg3 {[%emt 0:00:06]} 58. Rb8 {[%emt 0:00:16]} 1-0

[Event "Winter Malopolska Cup Master 2022"]
[Site "Krakow"]
[Date "2022.01.16"]
[Round "3.2"]
[White "Pniaczek, Marek"]
[Black "Trybus, Daniel"]
[Result "1/2-1/2"]
[ECO "B23"]
[WhiteElo "2329"]
[BlackElo "2067"]
[Annotator "ChessBase"]
[PlyCount "93"]
[EventDate "2022.01.15"]
[EventType "swiss"]
[EventCountry "POL"]
[SourceTitle "playchess.com"]
[Source "ChessBase"]
[SourceQuality "1"]
[TimeControl "5400+30"]

1. e4 {[%emt 0:00:01]} c5 {[%emt 0:00:10]} 2. Nc3 {[%emt 0:00:03]} d6 {[%emt 0:00:07]} 3. d4 {[%emt 0:00:03]} cxd4 {[%emt 0:00:05]} 4. Qxd4 {[%emt 0:00:03]} Nc6 {[%emt 0:00:03]} 5. Qd2 {[%emt 0:00:04]} g6 {[%emt 0:00:15]} 6. b3 {[%emt 0:00:06]} Bg7 {[%emt 0:00:50]} 7. Bb2 {[%emt 0:00:39]} f5 {[%emt 0:01:08]} 8. O-O-O {[%emt 0:05:52]} Nf6 {[%emt 0:03:07]} 9. exf5 {[%emt 0:09:38]} Bxf5 {[%emt 0:00:59]} 10. Bd3 {[%emt 0:01:21]} Qa5 {[%emt 0:03:57]} 11. Nf3 {[%emt 0:04:30]} O-O-O {[%emt 0:06:01]} 12. Kb1 {[%emt 0:02:05]} Kb8 {[%emt 0:02:27]} 13. Rhe1 {[%emt 0:02:58]} Rc8 {[%emt 0:05:11]} 14. Bxf5 {[%emt 0:09:44]} gxf5 {[%emt 0:04:34]} 15. Nd5 {[%emt 0:03:08]} Qxd2 16. Rxd2 {[%emt 0:00:19]} Ne4 {[%emt 0:16:51]} 17. Bxg7 {[%emt 0:02:28]} Rhg8 {[%emt 0:00:11]} 18. Bh6 {[%emt 0:07:47]} e6 {[%emt 0:05:01]} 19. Nf4 {[%emt 0:04:06]} Nxd2+ {[%emt 0:02:14]} 20. Nxd2 {[%emt 0:00:02]} e5 {[%emt 0:00:26]} 21. Nc4 {[%emt 0:16:15]} exf4 {[%emt 0:04:56]} 22. Nxd6 {[%emt 0:00:48]} Rcd8 {[%emt 0:02:12]} 23. Nxf5 {[%emt 0:00:20]} Ka8 {[%emt 0:01:25]} 24. Bxf4 {[%emt 0:08:19]} Rdf8 {[%emt 0:00:55]} 25. g4 {[%emt 0:01:04]} Rxg4 {[%emt 0:01:54]} 26. Bg3 {[%emt 0:00:11]} a6 {[%emt 0:01:38]} 27. Nd6 {[%emt 0:01:04]} h5 {[%emt 0:03:10]} 28. h4 {[%emt 0:00:37]} Rd8 {[%emt 0:02:09]} 29. Nc4 {[%emt 0:02:51]} Rf8 {[%emt 0:09:52]} 30. c3 {[%emt 0:06:50]} b5 {[%emt 0:02:39]} 31. Re6 {[%emt 0:01:29]} bxc4 {[%emt 0:02:17]} 32. Rxc6 {[%emt 0:00:02]} cxb3 {[%emt 0:02:58]} 33. axb3 {[%emt 0:00:05]} Kb7 {[%emt 0:00:02]} 34. Rd6 {[%emt 0:00:47]} Rf5 {[%emt 0:03:46]} 35. Kb2 {[%emt 0:01:21]} Re4 {[%emt 0:00:33]} 36. Rd3 {[%emt 0:02:40]} Re2+ {[%emt 0:02:21]} 37. Ka3 {[%emt 0:05:16]} Ra5+ {[%emt 0:02:22]} 38. Kb4 {[%emt 0:00:00]} Rb5+ {[%emt 0:00:02]} 39. Kc4 {[%emt 0:00:14]} Re4+ {[%emt 0:01:05]} 40. Rd4 {[%emt 0:00:01]} Rxd4+ {[%emt 0:00:06]} 41. cxd4 {[%emt 0:00:01]} Kc6 {[%emt 0:03:28]} 42. Be5 {[%emt 0:00:06]} a5 {[%emt 0:01:17]} 43. f4 {[%emt 0:00:04]} Rb4+ {[%emt 0:00:11]} 44. Kc3 {[%emt 0:00:04]} Kd5 {[%emt 0:00:54]} 45. f5 {[%emt 0:01:25]} Rb6 {[%emt 0:01:38]} 46. f6 {[%emt 0:00:37]} Rb7 {[%emt 0:00:01]} 47. Kc2 {[%emt 0:01:09]} 1/2-1/2

[Event "Winter Malopolska Cup Master 2022"]
[Site "Krakow"]
[Date "2022.01.16"]
[Round "3.3"]
[White "Czaplak, Lukasz"]
[Black "Saraev, Yaroslav"]
[Result "0-1"]
[ECO "B84"]
[WhiteElo "1877"]
[BlackElo "1922"]
[Annotator "ChessBase"]
[PlyCount "198"]
[EventDate "2022.01.15"]
[EventType "swiss"]
[EventCountry "POL"]
[SourceTitle "playchess.com"]
[Source "ChessBase"]
[SourceQuality "1"]
[TimeControl "5400+30"]

1. e4 {[%emt 0:00:01]} c5 {[%emt 0:05:13]} 2. Nf3 {[%emt 0:00:04]} d6 {[%emt 0:00:03]} 3. d4 {[%emt 0:00:04]} cxd4 {[%emt 0:00:03]} 4. Nxd4 {[%emt 0:00:03]} Nf6 {[%emt 0:00:04]} 5. Nc3 {[%emt 0:00:04]} a6 {[%emt 0:00:03]} 6. Be2 {[%emt 0:00:04]} e6 {[%emt 0:00:04]} 7. O-O {[%emt 0:00:19]} Be7 {[%emt 0:00:28]} 8. Be3 {[%emt 0:00:23]} O-O {[%emt 0:00:08]} 9. f4 {[%emt 0:02:29]} Qc7 {[%emt 0:00:14]} 10. Bf3 {[%emt 0:05:03]} Nc6 {[%emt 0:00:33]} 11. Nxc6 {[%emt 0:02:37]} bxc6 {[%emt 0:00:09]} 12. Qd2 {[%emt 0:08:55]} d5 {[%emt 0:03:15]} 13. e5 {[%emt 0:01:53]} Nd7 {[%emt 0:00:15]} 14. Ne2 {[%emt 0:00:46]} Bb7 {[%emt 0:03:11]} 15. c3 {[%emt 0:06:43]} c5 {[%emt 0:16:48]} 16. b4 {[%emt 0:12:57]} Nb6 {[%emt 0:00:24]} 17. Bxc5 {[%emt 0:05:03]} Bxc5+ {[%emt 0:11:31]} 18. bxc5 {[%emt 0:00:15]} Na4 {[%emt 0:17:22]} 19. Rab1 {[%emt 0:06:58]} Nxc5 {[%emt 0:09:01]} 20. Qd4 {[%emt 0:11:11]} Rab8 {[%emt 0:04:52]} 21. Rb4 {[%emt 0:06:42]} a5 {[%emt 0:05:59]} 22. Rb5 {[%emt 0:00:56]} Rbc8 {[%emt 0:04:21]} 23. Rfb1 {[%emt 0:07:52]} Ba6 {[%emt 0:00:29]} 24. Rb6 {[%emt 0:02:56]} Bd3 {[%emt 0:04:20]} 25. R1b2 {[%emt 0:00:52]} Bc4 {[%emt 0:00:19]} 26. Nc1 {[%emt 0:05:07]} Na4 {[%emt 0:06:04]} 27. Rb7 {[%emt 0:00:08]} Qc6 {[%emt 0:01:19]} 28. Rb1 {[%emt 0:00:36]} Ba6 {[%emt 0:03:58]} 29. Ra7 {[%emt 0:02:39]} Qxc3 {[%emt 0:01:29]} 30. Qxc3 {[%emt 0:01:40]} Nxc3 {[%emt 0:00:06]} 31. Ra1 {[%emt 0:03:46]} Ra8 {[%emt 0:02:27]} 32. Rxa8 {[%emt 0:02:21]} Rxa8 {[%emt 0:00:10]} 33. Kf2 {[%emt 0:00:56]} a4 {[%emt 0:00:16]} 34. a3 {[%emt 0:00:24]} Rb8 {[%emt 0:00:10]} 35. Ke3 {[%emt 0:00:58]} h6 {[%emt 0:01:29]} 36. Nd3 {[%emt 0:01:34]} Bxd3 {[%emt 0:00:52]} 37. Kxd3 {[%emt 0:00:04]} Rb1 {[%emt 0:00:12]} 38. Rxb1 {[%emt 0:00:21]} Nxb1 {[%emt 0:00:05]} 39. Bd1 {[%emt 0:00:32]} Nxa3 {[%emt 0:00:06]} 40. Bxa4 {[%emt 0:00:05]} Nc4 {[%emt 0:00:07]} 41. Bb3 {[%emt 0:00:41]} Na5 {[%emt 0:00:13]} 42. Ba2 {[%emt 0:00:15]} Nc6 {[%emt 0:00:13]} 43. Bb3 {[%emt 0:01:04]} Kf8 {[%emt 0:00:58]} 44. g3 {[%emt 0:01:02]} Ke7 {[%emt 0:01:14]} 45. Kc3 {[%emt 0:01:18]} f6 {[%emt 0:00:15]} 46. Ba4 {[%emt 0:00:27]} Nd8 {[%emt 0:00:29]} 47. Kd4 {[%emt 0:01:02]} fxe5+ {[%emt 0:00:44]} 48. fxe5 {[%emt 0:00:47]} Nf7 {[%emt 0:01:20]} 49. h4 {[%emt 0:00:20]} h5 {[%emt 0:00:44]} 50. Bd1 {[%emt 0:00:42]} Nh6 {[%emt 0:00:13]} 51. Bc2 {[%emt 0:00:53]} Kf7 {[%emt 0:00:20]} 52. Ke3 {[%emt 0:00:36]} Nf5+ {[%emt 0:01:13]} 53. Kf4 {[%emt 0:00:09]} Nd4 {[%emt 0:00:07]} 54. Ba4 {[%emt 0:00:38]} Ne2+ {[%emt 0:00:33]} 55. Kf3 {[%emt 0:00:34]} Nc3 {[%emt 0:00:07]} 56. Bc2 {[%emt 0:00:19]} d4 {[%emt 0:00:55]} 57. Bd3 {[%emt 0:00:32]} Ke7 {[%emt 0:00:47]} 58. Bg6 {[%emt 0:00:40]} Kd7 {[%emt 0:00:12]} 59. Bf7 {[%emt 0:00:37]} Ke7 {[%emt 0:00:50]} 60. Bxh5 {[%emt 0:00:12]} Kd7 {[%emt 0:00:17]} 61. Bg6 {[%emt 0:00:23]} Kc6 {[%emt 0:00:26]} 62. Bd3 {[%emt 0:00:34]} Kd5 {[%emt 0:00:42]} 63. Kf4 {[%emt 0:00:21]} Nd1 {[%emt 0:00:12]} 64. g4 {[%emt 0:01:18]} Nf2 {[%emt 0:00:06]} 65. Bb5 {[%emt 0:00:27]} d3 {[%emt 0:00:06]} 66. g5 {[%emt 0:00:37]} d2 {[%emt 0:00:12]} 67. Ba4 {[%emt 0:00:17]} Nd3+ {[%emt 0:00:37]} 68. Ke3 {[%emt 0:00:35]} Nxe5 {[%emt 0:00:17]} 69. Kxd2 {[%emt 0:00:26]} Nf3+ {[%emt 0:00:06]} 70. Ke3 {[%emt 0:00:04]} Nxh4 {[%emt 0:00:05]} 71. Bd1 {[%emt 0:01:09]} Ke5 {[%emt 0:00:23]} 72. Bc2 {[%emt 0:00:19]} Nf5+ {[%emt 0:00:19]} 73. Kf2 {[%emt 0:00:25]} Kf4 {[%emt 0:00:07]} 74. g6 {[%emt 0:00:05]} Kg5 {[%emt 0:00:06]} 75. Bb3 {[%emt 0:00:14]} Nd4 {[%emt 0:00:46]} 76. Bc4 {[%emt 0:00:21]} Kxg6 {[%emt 0:00:08]} 77. Ke3 {[%emt 0:00:09]} e5 {[%emt 0:00:12]} 78. Ke4 {[%emt 0:00:33]} Kf6 {[%emt 0:00:07]} 79. Bf1 {[%emt 0:00:19]} Ne6 {[%emt 0:00:20]} 80. Bg2 {[%emt 0:01:09]} Ng5+ {[%emt 0:00:21]} 81. Ke3 {[%emt 0:00:17]} Kf5 {[%emt 0:00:15]} 82. Bb7 {[%emt 0:00:12]} Nf7 {[%emt 0:02:39]} 83. Bc8+ {[%emt 0:00:42]} Kf6 {[%emt 0:00:11]} 84. Bg4 {[%emt 0:00:24]} Nd6 {[%emt 0:00:39]} 85. Bh3 {[%emt 0:00:17]} Kg5 {[%emt 0:00:09]} 86. Kf3 {[%emt 0:00:21]} Kh4 {[%emt 0:00:12]} 87. Be6 {[%emt 0:00:09]} g5 {[%emt 0:01:02]} 88. Bd7 {[%emt 0:00:19]} e4+ {[%emt 0:00:26]} 89. Ke3 {[%emt 0:00:23]} g4 {[%emt 0:00:18]} 90. Kf2 {[%emt 0:00:39]} g3+ {[%emt 0:03:38]} 91. Kg2 {[%emt 0:00:46]} Nf7 {[%emt 0:00:15]} 92. Be8 {[%emt 0:00:41]} Ng5 {[%emt 0:00:08]} 93. Bg6 {[%emt 0:00:21]} e3 {[%emt 0:00:25]} 94. Bd3 {[%emt 0:00:41]} Nh3 {[%emt 0:00:32]} 95. Kf3 {[%emt 0:00:34]} Nf4 {[%emt 0:00:15]} 96. Bf1 {[%emt 0:00:23]} e2 {[%emt 0:00:12]} 97. Bxe2 {[%emt 0:00:15]} Nxe2 {[%emt 0:00:05]} 98. Kxe2 {[%emt 0:00:04]} Kh3 {[%emt 0:00:06]} 99. Kf1 {[%emt 0:00:08]} Kh2 {[%emt 0:00:05]} 0-1

[Event "Winter Malopolska Cup Master 2022"]
[Site "Krakow"]
[Date "2022.01.16"]
[Round "3.4"]
[White "Mirski, Michal"]
[Black "Tokarz, Izabela"]
[Result "1-0"]
[ECO "B53"]
[WhiteElo "2039"]
[BlackElo "1728"]
[Annotator "ChessBase"]
[PlyCount "59"]
[EventDate "2022.01.15"]
[EventType "swiss"]
[EventCountry "POL"]
[SourceTitle "playchess.com"]
[Source "ChessBase"]
[SourceQuality "1"]
[TimeControl "5400+30"]

1. e4 {[%emt 0:10:21]} c5 {[%emt 0:00:04]} 2. Nf3 {[%emt 0:00:05]} d6 {[%emt 0:00:04]} 3. d4 {[%emt 0:00:09]} cxd4 {[%emt 0:00:04]} 4. Qxd4 {[%emt 0:00:28]} Nc6 {[%emt 0:00:08]} 5. Bb5 {[%emt 0:01:29]} Bd7 {[%emt 0:01:36]} 6. Bxc6 {[%emt 0:02:15]} Bxc6 {[%emt 0:00:45]} 7. Bg5 {[%emt 0:02:35]} Nf6 {[%emt 0:06:53]} 8. Nc3 {[%emt 0:02:02]} e6 {[%emt 0:05:45]} 9. O-O-O {[%emt 0:01:40]} Be7 {[%emt 0:01:35]} 10. Rhe1 {[%emt 0:02:41]} Qc7 {[%emt 0:11:48]} 11. Qe3 {[%emt 0:23:37]} O-O {[%emt 0:07:26]} 12. Bxf6 {[%emt 0:10:02]} Bxf6 {[%emt 0:00:25]} 13. g4 {[%emt 0:00:31]} g6 {[%emt 0:11:16]} 14. g5 {[%emt 0:02:11]} Bh8 {[%emt 0:03:54]} 15. Nd4 {[%emt 0:01:52]} b5 {[%emt 0:15:01]} 16. f4 {[%emt 0:05:52]} Bd7 {[%emt 0:06:12]} 17. e5 {[%emt 0:15:46]} dxe5 {[%emt 0:05:32]} 18. fxe5 {[%emt 0:00:10]} b4 {[%emt 0:00:36]} 19. Ne4 {[%emt 0:01:31]} Qxe5 {[%emt 0:00:51]} 20. Qf2 {[%emt 0:05:24]} Qa5 {[%emt 0:14:39]} 21. Kb1 {[%emt 0:07:52]} Rad8 {[%emt 0:03:49]} 22. Qh4 {[%emt 0:01:09]} f5 {[%emt 0:01:55]} 23. gxf6 {[%emt 0:00:41]} Qh5 {[%emt 0:00:52]} 24. Qxh5 {[%emt 0:00:52]} gxh5 {[%emt 0:00:04]} 25. Rg1+ {[%emt 0:00:25]} Kf7 {[%emt 0:00:05]} 26. Rdf1 {[%emt 0:00:25]} Bc8 {[%emt 0:01:38]} 27. Ng5+ {[%emt 0:00:31]} Ke8 {[%emt 0:00:19]} 28. Ndxe6 {[%emt 0:00:34]} Rxf6 {[%emt 0:00:32]} 29. Nxd8 {[%emt 0:00:24]} Kxd8 {[%emt 0:00:04]} 30. Nf7+ {[%emt 0:00:24]} 1-0